bitfinex/quotes_ETHUSD_20251023
["timestamp","ask_amount","ask_price","bid_price","bid_amount"]
[1761210064681,4.12986529,3884.0,3883.9,0.1308]
[1761210065077,4.12986529,3884.0,3883.9,3.3908]
[1761210065271,4.12986529,3884.0,3883.9,0.1308]
[1761210065471,4.12986529,3884.0,3883.9,3.3908]
[1761210068073,4.22886529,3884.0,3883.9,3.3908]
[1761210068474,5.00160409,3884.0,3883.9,3.3908]
[1761210070792,4.90260409,3884.0,3883.9,3.3908]
[1761210070992,4.12986529,3884.0,3883.9,3.72988]
[1761210071675,4.12986529,3884.0,3883.9,3.3908]
[1761210072207,4.90251851,3884.0,3883.9,3.3908]
[1761210075422,2.57553272,3884.2,3883.9,4.22828]
[1761210075423,0.001,3884.2,3883.9,4.22828]
[1761210075576,0.001,3884.2,3884.1,3.311279]
[1761210076112,0.001,3885.0,3884.5,0.50688]
[1761210076408,0.001,3885.0,3884.1,2.804399]
[1761210076409,0.001,3885.8,3885.3,4.63588382]
[1761210076596,0.001,3885.8,3885.3,7.92162185]
[1761210076783,0.001,3885.8,3885.3,8.35528382]
[1761210077884,0.001,3885.8,3885.3,0.4594]
[1761210078084,0.001,3885.8,3885.3,3.7194]
[1761210078391,0.001,3885.8,3885.3,0.30327039]
[1761210078601,2.57362151,3885.6,3885.3,2.921]
[1761210078814,2.57372787,3885.5,3884.9,0.4594]
[1761210079016,2.573543,3885.7,3885.0,2.785]
[1761210079401,2.573543,3885.7,3885.1,0.6892]
[1761210079813,2.573543,3885.7,3885.2,0.4594]
[1761210080117,2.573543,3885.7,3885.3,0.34742]
[1761210080814,2.57361167,3885.6,3885.3,0.34742]
[1761210081516,0.001,3885.8,3885.3,0.34742]
[1761210081720,2.57367152,3885.5,3885.3,0.34742]
[1761210081923,2.57473758,3885.4,3884.7,2.57419386]
[1761210082131,2.57473758,3885.4,3884.8,3.26]
[1761210082524,0.001,3885.4,3884.8,3.26]
[1761210082826,0.001,3885.4,3884.8,3.7194]
[1761210083126,2.57474582,3885.4,3884.8,3.7194]
[1761210083296,2.57474582,3885.4,3884.9,0.62935939]
[1761210083496,0.001,3885.4,3884.9,0.62935939]
[1761210083801,0.3462,3885.3,3884.3,0.4594]
[1761210084005,2.57397133,3885.1,3884.4,3.259]
[1761210084245,2.57397133,3885.1,3884.4,5.83339224]
[1761210084825,2.57388034,3885.2,3884.5,2.57431286]
[1761210085012,2.92001689,3885.3,3884.6,2.5742631]
[1761210085202,0.0002,3885.4,3884.6,1.36052292]
[1761210085512,0.0002,3885.4,3885.2,0.1288]
[1761210085699,0.0002,3885.4,3885.3,3.259]
[1761210086834,0.0002,3885.4,3885.3,3.7315]
[1761210090201,0.0002,3885.4,3885.3,7.78527446]
[1761210096226,0.0002,3885.4,3885.3,7.91407446]
[1761210098232,0.0002,3885.4,3885.3,11.78387446]
[1761210104604,0.0002,3885.4,3885.3,13.51987446]
[1761210107545,0.0002,3885.4,3885.3,15.07507446]
[1761210108141,0.001,3885.8,3885.3,15.07507446]
[1761210108331,0.0004,3885.8,3885.7,3.08041887]
[1761210108532,0.0004,3885.8,3885.7,6.46721887]
[1761210108730,0.0004,3885.8,3885.7,6.90381887]
[1761210118875,0.0004,3885.8,3885.7,10.77361887]
[1761210123573,0.0004,3885.8,3885.7,10.33701887]
[1761210123890,0.0004,3885.8,3885.7,12.4621325]
[1761210124900,0.0004,3885.8,3885.7,8.1543325]
[1761210125205,0.0004,3885.8,3885.7,8.5923325]
[1761210127914,0.0004,3885.8,3885.7,1.81591363]
[1761210128119,2.90767264,3885.8,3885.6,0.002]
[1761210128276,4.46483887,3885.7,3885.6,0.002]
[1761210128607,8.75902848,3885.7,3885.6,0.001]
[1761210128971,8.75902848,3885.7,3885.6,1.328]
[1761210129206,8.75902848,3885.7,3885.3,0.002]
[1761210129207,4.12893758,3885.4,3885.3,0.002]
[1761210129497,4.12893758,3885.4,3885.3,1.27]
[1761210129801,4.22853758,3885.4,3885.3,1.27]
[1761210132623,1.6548,3885.4,3885.3,1.27]
[1761210132788,1.654,3885.4,3885.3,1.27]
[1761210132983,4.22773758,3885.4,3885.3,1.27]
[1761210133606,1.654,3885.4,3885.3,1.27]
[1761210133998,4.22773758,3885.4,3885.3,1.27]
[1761210135816,1.654,3885.4,3885.3,1.27]
[1761210136408,4.22773758,3885.4,3885.3,1.27]
[1761210138217,4.22773758,3885.4,3885.3,1.3988]
[1761210141750,1.5544,3885.4,3885.3,1.3988]
[1761210142416,4.12813758,3885.4,3885.3,1.3988]
[1761210143021,1.5544,3885.4,3885.3,1.3988]
[1761210143626,2.80908594,3885.7,3885.3,1.3988]
[1761210143824,1.5552,3885.6,3885.3,1.3988]
[1761210144144,2.5736051,3885.6,3885.5,0.1288]
[1761210144350,4.1288051,3885.6,3885.5,0.1288]
[1761210145629,1.5552,3885.6,3885.5,0.1288]
[1761210148444,4.1288051,3885.6,3885.5,0.1288]
[1761210149558,1.5552,3885.6,3885.5,0.1288]
[1761210151263,0.2159,3885.8,3885.5,0.15453671]
[1761210151461,0.0004,3885.8,3885.7,0.1288]
[1761210153832,0.0004,3885.8,3885.7,2.70233887]
[1761210155266,0.0004,3885.8,3885.7,3.13673887]
[1761210156692,0.0004,3885.8,3885.7,3.54055425]
[1761210156893,0.0004,3885.8,3885.7,4.53813842]
[1761210157198,0.0006,3886.2,3886.1,2.57327397]
[1761210157395,0.0006,3886.2,3886.1,5.95907397]
[1761210159506,0.0006,3886.2,3886.1,6.46595397]
[1761210159789,0.0006,3886.2,3886.1,6.90035397]
[1761210159974,0.0006,3886.2,3886.1,7.84772465]
[1761210160176,0.0006,3886.2,3886.1,8.08452465]
[1761210162114,0.0006,3886.2,3886.1,8.08652465]
[1761210169429,0.0006,3886.2,3886.1,11.95632465]
[1761210179546,0.0006,3886.2,3886.1,11.28512465]
[1761210180050,0.0006,3886.2,3886.1,11.72182465]
[1761210181648,0.0008,3886.6,3886.5,3.07988913]
[1761210181848,0.0008,3886.6,3886.5,10.20468913]
[1761210182050,0.0008,3886.6,3886.5,10.64138913]
[1761210182219,0.0008,3886.6,3886.5,10.77018913]
[1761210185965,0.0008,3886.6,3886.5,12.67777101]
[1761210186260,0.0008,3886.6,3886.5,14.53193882]
[1761210188362,0.0008,3886.6,3886.5,14.17955694]
[1761210192966,0.0008,3886.6,3886.5,8.29697694]
[1761210193268,0.0008,3886.6,3886.5,3.254]
[1761210193587,0.1019,3886.6,3886.5,3.254]
[1761210194073,0.0008,3886.6,3886.5,3.254]
[1761210194734,0.1019,3886.6,3886.5,3.254]
[1761210195133,0.1019,3886.6,3886.1,0.002]
[1761210195441,0.1019,3886.6,3886.2,3.254]
[1761210195850,2.57300913,3886.5,3886.2,3.254]
[1761210196044,2.573079,3886.4,3886.2,3.254]
[1761210196438,0.1011,3886.3,3886.2,3.254]
[1761210196638,0.1011,3886.3,3886.1,0.002]
[1761210196639,2.57320776,3886.2,3886.1,0.002]
[1761210196846,2.57320776,3886.2,3886.1,3.256]
[1761210197164,2.67430776,3886.2,3886.1,3.256]
[1761210197552,0.1011,3886.2,3886.1,3.256]
[1761210197759,2.67430776,3886.2,3886.1,3.256]
[1761210197938,0.1011,3886.2,3886.1,3.256]
[1761210198138,2.67411888,3886.5,3886.1,3.256]
[1761210198442,2.57309349,3886.4,3886.1,3.256]
[1761210198649,2.67419349,3886.4,3886.1,3.256]
[1761210198969,2.57320776,3886.2,3886.1,3.256]
[1761210199363,0.1011,3886.2,3886.1,3.256]
[1761210200458,2.67430776,3886.2,3886.1,3.256]
[1761210200982,0.1011,3886.2,3886.1,3.256]
[1761210201681,2.67430776,3886.2,3886.1,3.256]
[1761210202081,0.1011,3886.2,3886.1,3.256]
[1761210202989,0.1011,3886.2,3886.1,3.3848]
[1761210204274,2.67430776,3886.2,3886.1,0.1308]
[1761210204476,2.80310776,3886.2,3886.1,2.593]
[1761210204688,4.48910776,3886.2,3886.1,2.593]
[1761210206057,4.48830776,3886.2,3886.1,2.593]
[1761210209601,8.77528802,3886.2,3886.1,0.002]
[1761210212101,2.57340641,3885.9,3885.8,1e-08]
[1761210212398,8.61588667,3885.9,3885.8,1e-08]
[1761210212598,9.08538667,3885.9,3885.8,1e-08]
[1761210213283,2.57373758,3885.4,3884.8,0.002]
[1761210213605,4.12893758,3885.4,3884.8,0.002]
[1761210213804,4.51523758,3885.4,3884.8,0.002]
[1761210214835,4.61824952,3885.4,3884.8,0.002]
[1761210216025,8.90522978,3885.4,3884.8,0.002]
[1761210216729,4.61824952,3885.4,3884.8,0.002]
[1761210222312,8.90522978,3885.4,3884.8,0.002]
[1761210223260,4.61824952,3885.4,3884.8,0.002]
[1761210230654,4.61744952,3885.4,3884.8,0.002]
[1761210231546,4.61844952,3885.4,3884.8,0.002]
[1761210232251,2.57453272,3884.2,3884.1,0.147]
[1761210232547,4.12973272,3884.2,3884.1,0.147]
[1761210232746,4.12973272,3884.2,3883.6,0.4653]
[1761210232747,2.57486417,3883.7,3883.6,0.4653]
[1761210233153,2.57493047,3883.6,3883.2,0.4653]
[1761210233359,2.5751294,3883.3,3883.2,0.4653]
[1761210233553,2.57519571,3883.2,3883.0,3.255]
[1761210233724,2.57526203,3883.1,3883.0,3.255]
[1761210234349,2.57526203,3883.1,3883.0,0.4653]
[1761210234548,2.57526203,3883.1,3882.6,3.255]
[1761210234549,2.57552733,3882.7,3882.6,3.255]
[1761210235330,2.57552733,3882.7,3882.6,3.7203]
[1761210237146,2.57544649,3882.9,3881.6,1.45168024]
[1761210237147,2.57619084,3881.7,3881.6,0.94480024]
[1761210237325,2.57585904,3882.2,3882.1,0.223]
[1761210237725,2.57585904,3882.2,3882.1,0.6883]
[1761210239147,2.57585904,3882.2,3882.1,0.223]
[1761210239464,2.57585904,3882.2,3882.1,3.9087]
[1761210240392,2.57619084,3881.7,3881.6,0.94480024]
[1761210240663,4.13139084,3881.7,3881.6,0.94480024]
[1761210240868,4.13139084,3881.7,3881.6,1.37450024]
[1761210241239,4.13139084,3881.7,3881.6,0.94480024]
[1761210241435,4.13139084,3881.7,3881.6,1e-08]
[1761210242145,4.26019084,3881.7,3881.6,1e-08]
[1761210242444,4.26019084,3881.7,3881.6,0.42970001]
[1761210242445,4.13139084,3881.7,3881.6,0.42970001]
[1761210242644,4.13139084,3881.7,3881.6,1e-08]
[1761210245477,4.24809084,3881.7,3881.6,1e-08]
[1761210246783,4.13139084,3881.7,3881.6,1e-08]
[1761210247160,4.13139084,3881.7,3881.6,0.42970001]
[1761210248990,4.13139084,3881.7,3881.6,0.43170001]
[1761210249888,0.119,3883.2,3881.6,0.43170001]
[1761210250076,2.57518112,3883.3,3881.6,0.43170001]
[1761210250077,2.57619084,3881.7,3881.6,0.43170001]
[1761210250462,2.57521481,3883.2,3881.6,0.43170001]
[1761210250665,2.57521481,3883.2,3881.7,0.2364]
[1761210250666,2.57532835,3883.0,3881.7,0.2364]
[1761210250877,2.57605811,3881.9,3881.8,2.478]
[1761210251073,2.57605811,3881.9,3881.8,3.22231]
[1761210252062,2.57605811,3881.9,3881.8,2.9077]
[1761210252262,2.57605811,3881.9,3881.8,3.0365]
[1761210255073,2.57525811,3881.9,3881.8,3.0365]
[1761210256192,0.1288,3882.5,3881.8,3.0365]
[1761210256379,0.1288,3883.1,3882.4,0.2364]
[1761210256578,2.57566001,3882.5,3882.4,0.2364]
[1761210256889,2.57566001,3882.5,3882.4,2.6624]
[1761210257090,2.57566001,3882.5,3882.4,2.7912]
[1761210257295,2.57566001,3882.5,3881.7,0.2364]
[1761210257296,2.57612447,3881.8,3881.7,0.2364]
[1761210257597,2.57619084,3881.7,3881.6,0.00200001]
[1761210258797,4.13139084,3881.7,3881.6,0.00200001]
[1761210259586,2.57678829,3880.8,3879.6,0.7297]
[1761210259877,2.57692109,3880.6,3880.0,2.109]
[1761210260213,2.57692109,3880.6,3879.6,0.3]
[1761210260214,2.57738601,3879.9,3879.8,0.4297]
[1761210260705,2.70618601,3879.9,3879.8,0.4297]
[1761210261476,2.57751888,3879.7,3879.6,0.25]
[1761210261704,2.70631888,3879.7,3879.6,0.25]
[1761210262808,2.70631888,3879.7,3879.6,0.6797]
[1761210262980,2.70631888,3879.7,3879.6,0.25]
[1761210263180,4.26151888,3879.7,3879.6,1e-08]
[1761210263486,4.13271888,3879.7,3879.6,1e-08]
[1761210264098,2.57751888,3879.7,3879.6,1e-08]
[1761210264811,2.57751888,3879.7,3879.6,0.42820001]
[1761210268106,2.57751888,3879.7,3879.6,0.43020001]
[1761210268319,2.57851888,3879.7,3879.6,0.43020001]
[1761210268906,0.001,3879.7,3879.6,0.43020001]
[1761210269218,0.001,3879.7,3879.6,0.93708001]
[1761210271112,0.001,3879.7,3879.6,1.3169087]
[1761210271319,0.001,3879.7,3879.6,0.8100287]
[1761210271618,0.001,3879.7,3879.6,1.3169087]
[1761210271913,0.001,3879.7,3879.6,3.89449401]
[1761210272112,0.001,3879.7,3879.6,7.16191816]
[1761210272886,0.001,3879.7,3879.6,10.43691816]
[1761210273280,0.001,3879.7,3879.6,10.56571816]
[1761210274097,0.001,3879.7,3879.6,14.43551816]
[1761210274901,0.001,3879.7,3879.6,13.92863816]
[1761210275100,0.001,3879.7,3879.6,14.43551816]
[1761210275520,0.001,3879.7,3879.6,4.65405285]
[1761210275888,0.001,3879.7,3879.6,7.92805285]
[1761210276085,0.001,3879.7,3879.6,0.46210001]
[1761210276322,0.001,3879.7,3879.6,3.73610001]
[1761210277042,2.57851888,3879.7,3879.6,3.78288001]
[1761210277196,2.57851888,3879.7,3879.6,4.24298001]
[1761210277519,0.001,3879.7,3879.6,4.24298001]
[1761210277819,0.001,3879.7,3879.6,4.66727801]
[1761210278719,0.001,3879.7,3879.6,3.78288001]
[1761210278920,0.001,3879.7,3879.6,4.24298001]
[1761210279100,0.001,3879.7,3879.6,3.73710001]
[1761210279620,2.57745792,3879.8,3879.6,3.73710001]
[1761210279827,2.57751888,3879.7,3879.6,0.00200001]
[1761210279993,2.57751888,3879.7,3879.6,3.27700001]
[1761210280190,2.57747274,3879.8,3879.6,3.27700001]
[1761210280491,0.001,3880.1,3879.8,0.50688]
[1761210280691,0.001,3880.1,3880.0,0.50688]
[1761210280922,0.001,3880.1,3880.0,0.96698]
[1761210283638,2.57826818,3880.1,3879.9,0.50688]
[1761210283814,0.001,3880.1,3880.0,3.274]
[1761210284137,2.57825316,3880.1,3880.0,3.274]
[1761210285034,2.57738601,3879.9,3879.8,3.8698]
[1761210285234,2.57738601,3879.9,3879.8,7.1438]
[1761210285471,2.57733046,3880.0,3879.8,7.1438]
[1761210285737,0.001,3880.1,3879.9,0.4601]
[1761210285936,0.001,3880.1,3879.9,0.99275386]
[1761210286137,0.001,3880.1,3880.0,3.54429958]
[1761210287003,0.001,3880.1,3880.0,0.96698]
[1761210287337,0.001,3880.1,3880.0,3.54429958]
[1761210287546,0.001,3880.1,3880.0,1.98519785]
[1761210287755,0.001,3880.1,3879.7,0.4601]
[1761210287910,0.001,3880.1,3880.0,3.275]
[1761210288310,2.57825316,3880.1,3880.0,3.275]
[1761210289296,0.1095,3880.1,3879.6,0.00200001]
[1761210289498,2.57751888,3879.7,3879.6,0.00200001]
[1761210289698,2.57751888,3879.7,3879.6,3.27700001]
[1761210289902,2.57743895,3879.9,3879.6,3.27700001]
[1761210289903,0.2128,3879.9,3879.6,3.27700001]
[1761210290100,2.57740105,3879.9,3879.6,3.27700001]
[1761210290261,2.57746046,3879.8,3879.6,3.27700001]
[1761210290461,2.57751888,3879.7,3879.6,3.27700001]
[1761210292193,2.57751888,3879.7,3879.6,0.00200001]
[1761210292194,2.67651888,3879.7,3879.6,0.00200001]
[1761210292504,2.67651888,3879.7,3879.6,3.27700001]
[1761210293407,2.67651888,3879.7,3879.6,3.23500001]
[1761210293580,2.67651888,3879.7,3879.6,3.27700001]
[1761210294102,2.67651888,3879.7,3879.6,0.00200001]
[1761210295699,2.57751888,3879.7,3879.6,0.00200001]
[1761210295993,2.70631888,3879.7,3879.6,0.00200001]
[1761210296781,2.67651888,3879.7,3879.6,0.00200001]
[1761210298198,2.67651888,3879.7,3879.6,3.27600001]
[1761210300474,2.57751888,3879.7,3879.6,0.00200001]
[1761210300900,2.57751888,3879.7,3879.6,0.47150001]
[1761210301101,2.57751888,3879.7,3879.6,0.86965001]
[1761210301426,0.001,3880.1,3879.6,0.86965001]
[1761210301594,0.001,3880.1,3879.7,0.4695]
[1761210301904,0.001,3880.1,3879.8,3.08432489]
[1761210302092,0.001,3880.1,3879.8,0.50688]
[1761210302295,0.001,3880.1,3879.9,0.86490285]
[1761210302792,0.001,3880.1,3880.0,0.4695]
[1761210303801,0.001,3880.1,3879.7,0.97638]
[1761210304006,0.0002,3880.1,3880.0,3.276]
[1761210304419,0.0002,3880.1,3879.6,0.40015001]
[1761210304626,2.57746096,3880.1,3880.0,3.275]
[1761210305588,0.0002,3880.1,3880.0,3.275]
[1761210305790,0.0002,3880.1,3880.0,4.12152752]
[1761210307184,0.0002,3880.1,3880.0,7.2057271]
[1761210307390,0.0002,3880.1,3880.0,7.3345271]
[1761210309596,0.0002,3880.1,3880.0,4.75720752]
[1761210309922,0.0002,3880.1,3880.0,4.11952752]
[1761210310226,0.0002,3880.1,3880.0,7.2037271]
[1761210310530,0.0002,3880.1,3880.0,7.3325271]
[1761210310724,0.0002,3880.1,3880.0,4.75520752]
[1761210311132,0.0002,3880.1,3880.0,7.3325271]
[1761210311333,0.0002,3880.1,3880.0,4.75520752]
[1761210311903,0.0002,3880.1,3880.0,7.3325271]
[1761210312299,0.0002,3880.1,3880.0,4.75520752]
[1761210312501,0.0002,3880.1,3880.0,7.3325271]
[1761210314122,0.0002,3880.1,3880.0,4.75520752]
[1761210314331,0.0002,3880.1,3880.0,7.3325271]
[1761210315557,0.0002,3880.1,3880.0,1.01270752]
[1761210315862,2.57745316,3880.1,3880.0,3.271]
[1761210316160,2.70626258,3880.1,3880.0,3.271]
[1761210317058,0.129,3880.1,3880.0,3.271]
[1761210317261,0.0002,3880.1,3880.0,3.7405]
[1761210317418,0.0002,3880.1,3880.0,3.90280175]
[1761210317618,0.0002,3880.1,3880.0,3.271]
[1761210317940,0.0002,3880.1,3880.0,3.7405]
[1761210318516,0.0002,3880.1,3880.0,6.82469958]
[1761210318816,0.0002,3880.1,3880.0,6.95349958]
[1761210319020,0.0002,3880.1,3880.0,7.90658939]
[1761210320128,0.0002,3880.1,3880.0,9.46178939]
[1761210321069,0.0002,3880.1,3880.0,9.33298939]
[1761210323815,0.0002,3880.1,3880.0,9.33498939]
[1761210324850,0.0002,3880.1,3880.0,13.20478939]
[1761210329694,0.0004,3880.5,3880.4,11.39766062]
[1761210330898,0.0004,3880.5,3880.4,11.52646062]
[1761210331269,0.0004,3880.5,3880.4,9.21186062]
[1761210331470,0.0004,3880.5,3880.4,9.08306062]
[1761210331668,0.001,3880.9,3880.8,2.57678829]
[1761210331989,0.001,3880.9,3880.8,7.93563617]
[1761210332186,0.001,3880.9,3880.8,8.36116829]
[1761210332403,0.001,3880.9,3880.8,8.4928006]
[1761210333690,0.22,3883.0,3882.8,2.57542571]
[1761210333891,0.22,3883.0,3882.9,3.27]
[1761210334095,0.319,3883.0,3882.9,3.27]
[1761210335795,0.22,3883.0,3882.9,3.27]
[1761210336111,0.099,3883.2,3882.9,3.27]
[1761210336285,0.1002,3883.1,3882.9,3.27]
[1761210337888,2.67524869,3883.5,3883.0,0.50688]
[1761210338086,2.57504869,3883.5,3883.0,0.50688]
[1761210338412,0.1002,3883.4,3883.0,0.50688]
[1761210338576,0.1002,3883.4,3883.0,3.08219068]
[1761210339607,0.1002,3883.8,3883.2,2.57518924]
[1761210339904,0.1002,3883.8,3883.3,3.268]
[1761210340404,2.67501413,3883.8,3883.3,3.268]
[1761210340571,0.1002,3883.8,3883.3,3.268]
[1761210340776,0.001,3883.5,3883.3,3.268]
[1761210341383,0.001,3883.5,3883.4,0.1288]
[1761210341589,0.1012,3883.5,3883.4,0.1288]
[1761210343289,0.1012,3883.5,3883.4,3.266]
[1761210343504,0.1012,3883.5,3881.6,3.8698]
[1761210343710,2.57548525,3882.8,3882.1,2.57591995]
[1761210343897,2.57553672,3882.7,3882.2,3.267]
[1761210344212,2.89190252,3883.4,3882.2,3.267]
[1761210344382,2.57573178,3882.4,3882.2,3.267]
[1761210344708,2.57566833,3882.5,3882.2,3.267]
[1761210345081,0.3168,3882.4,3882.2,3.267]
[1761210346216,2.79431595,3882.8,3882.2,3.267]
[1761210346599,2.89451595,3882.8,3882.2,3.267]
[1761210346803,2.5755328,3882.7,3882.2,3.267]
[1761210347213,2.6757328,3882.7,3882.2,3.267]
[1761210347383,0.1002,3882.6,3882.2,3.267]
[1761210347579,0.1002,3882.6,3882.1,3.8698]
[1761210347917,2.57585904,3882.2,3882.1,3.8698]
[1761210348088,2.57585904,3882.2,3882.1,7.1408]
[1761210348277,2.67605904,3882.2,3882.1,7.1408]
[1761210348683,2.67605904,3882.2,3882.1,3.271]
[1761210349821,0.1002,3882.2,3882.1,3.271]
[1761210350019,2.57585904,3882.2,3882.1,3.271]
[1761210350223,2.67605904,3882.2,3882.1,3.271]
[1761210350727,0.1002,3882.2,3882.1,3.271]
[1761210351492,0.1002,3882.6,3882.1,3.271]
[1761210351697,2.5756621,3882.5,3882.1,3.271]
[1761210351993,2.57560658,3882.6,3882.1,3.271]
[1761210352327,2.57554376,3882.7,3882.1,3.271]
[1761210352628,0.319,3882.8,3882.1,3.271]
[1761210352822,0.319,3882.8,3882.1,5.84690981]
[1761210353030,2.89368551,3882.8,3882.1,5.84690981]
[1761210353213,0.447,3882.8,3882.2,0.15455859]
[1761210353417,0.3182,3882.8,3882.4,0.1288]
[1761210353716,0.3182,3882.8,3882.5,3.269]
[1761210353921,2.57559294,3882.7,3882.5,3.269]
[1761210354104,2.67579294,3882.7,3882.5,3.269]
[1761210355225,0.218,3882.8,3882.5,3.269]
[1761210355425,2.79347182,3882.8,3882.5,3.269]
[1761210355736,2.89367182,3882.8,3882.5,3.269]
[1761210356629,0.1002,3882.7,3882.5,3.269]
[1761210356833,0.218,3882.8,3882.5,3.269]
[1761210357031,2.80434982,3883.0,3882.5,3.269]
[1761210357403,2.57540309,3882.9,3882.5,3.269]
[1761210357605,2.67554949,3883.0,3882.6,0.02575593]
[1761210357805,2.67554949,3883.0,3882.6,0.15455593]
[1761210358105,0.1288,3883.4,3882.5,3.269]
[1761210358331,2.70386671,3883.4,3882.9,0.1288]
[1761210358524,2.57528137,3883.1,3883.0,3.267]
[1761210358728,2.57520618,3883.2,3883.0,3.267]
[1761210358917,2.67660618,3883.2,3883.0,3.267]
[1761210359118,0.1014,3883.1,3883.0,3.267]
[1761210360659,2.67655064,3883.3,3883.0,3.267]
[1761210360843,0.1014,3883.2,3883.0,3.267]
[1761210361208,2.67661214,3883.2,3883.0,3.267]
[1761210361734,2.67666203,3883.1,3883.0,3.267]
[1761210362732,0.1014,3883.1,3883.0,3.267]
[1761210363916,2.57510531,3883.4,3883.0,3.3958]
[1761210364128,2.57604738,3883.5,3883.0,3.3958]
[1761210364329,0.001,3883.5,3883.1,0.6945]
[1761210364556,0.1014,3883.4,3883.2,3.265]
[1761210364863,2.5751294,3883.3,3883.2,3.265]
[1761210365065,2.67646884,3883.4,3883.2,3.265]
[1761210365271,2.6765294,3883.3,3883.2,3.265]
[1761210367638,2.8053294,3883.3,3883.2,3.265]
[1761210373283,0.2302,3883.3,3883.2,3.265]
[1761210374594,2.8053294,3883.3,3883.2,3.265]
[1761210376275,2.57506308,3883.4,3883.2,3.265]
[1761210376477,0.1298,3883.5,3883.2,3.265]
[1761210376681,2.57506308,3883.4,3883.2,3.265]
[1761210377398,2.70481229,3883.5,3883.2,3.265]
[1761210377568,2.70401229,3883.5,3883.2,3.265]
[1761210377770,0.0002,3883.5,3883.3,0.4627]
[1761210378092,0.0002,3883.5,3883.2,3.3938]
[1761210378295,0.0002,3883.5,3883.2,3.99071223]
[1761210379185,0.0002,3883.5,3883.2,4.45341223]
[1761210380997,0.0002,3883.5,3883.2,3.99071223]
[1761210382203,0.0002,3883.5,3883.2,3.3938]
[1761210388419,0.1016,3883.5,3883.3,3.262]
[1761210388713,2.67659785,3883.5,3883.3,3.262]
[1761210389119,2.57506308,3883.4,3883.3,3.262]
[1761210389419,2.67646308,3883.4,3883.3,3.262]
[1761210389583,2.57506308,3883.4,3883.3,3.262]
[1761210390216,2.67646308,3883.4,3883.3,3.262]
[1761210390814,0.0002,3883.5,3883.3,3.262]
[1761210390815,2.57521236,3883.5,3883.3,3.262]
[1761210391113,2.57506308,3883.4,3883.3,3.262]
[1761210391314,2.67646308,3883.4,3883.3,3.262]
[1761210391523,0.0002,3883.5,3883.3,3.262]
[1761210391698,2.57520038,3883.5,3883.3,3.262]
[1761210394218,2.57506308,3883.4,3883.3,3.262]
[1761210395223,2.57526203,3883.1,3883.0,0.1288]
[1761210395390,2.57539467,3882.9,3882.8,0.002]
[1761210395590,2.70419467,3882.9,3882.8,2.429]
[1761210395892,3.02159467,3882.9,3882.8,2.429]
[1761210401922,3.02079467,3882.9,3882.8,2.429]
[1761210402441,4.57599467,3882.9,3882.8,0.002]
[1761210402624,5.34898833,3882.9,3882.8,0.002]
[1761210414938,5.34998833,3882.9,3882.8,0.002]
[1761210417769,5.25178833,3882.9,3882.8,0.002]
[1761210418143,5.03258833,3882.9,3882.8,0.002]
[1761210419161,5.13278833,3882.9,3882.8,0.002]
[1761210419352,5.34968833,3882.9,3882.8,0.002]
[1761210420591,5.24948833,3882.9,3882.8,0.002]
[1761210420954,5.03258833,3882.9,3882.8,0.002]
[1761210422698,4.25959467,3882.9,3882.8,0.002]
[1761210422853,2.70439467,3882.9,3882.8,0.002]
[1761210423050,2.70439467,3882.9,3882.8,0.4422]
[1761210423549,2.57559467,3882.9,3882.8,0.4422]
[1761210426385,2.57479467,3882.9,3882.8,0.4422]
[1761210427034,0.001,3882.9,3882.8,0.4422]
[1761210427338,0.001,3882.9,3882.8,0.571]
[1761210427838,0.001,3882.9,3882.8,0.88565223]
[1761210428126,0.001,3882.9,3882.8,3.46111323]
[1761210428286,0.001,3882.9,3882.8,0.88565223]
[1761210428635,0.001,3882.9,3882.8,4.14665223]
[1761210431835,0.001,3882.9,3882.8,6.72211323]
[1761210433708,0.001,3882.9,3882.8,4.14665223]
[1761210433919,0.001,3882.9,3882.8,6.72211323]
[1761210435017,0.001,3882.9,3882.8,7.22899323]
[1761210439602,0.001,3882.9,3882.8,11.09879323]
[1761210450746,0.001,3882.9,3882.8,4.31525223]
[1761210450926,0.0992,3882.9,3882.8,7.2606]
[1761210451960,2.67459467,3882.9,3882.8,7.2606]
[1761210452122,2.88909467,3882.9,3882.8,7.1318]
[1761210452834,0.3137,3882.9,3882.8,7.1318]
[1761210453024,2.88909467,3882.9,3882.8,7.1318]
[1761210453222,2.79009467,3882.9,3882.8,3.8718]
[1761210453423,2.89029467,3882.9,3882.8,7.1318]
[1761210453622,0.0002,3882.9,3882.8,7.1318]
[1761210454449,0.0002,3882.9,3882.8,3.262]
[1761210455519,0.0002,3882.9,3882.8,4.05608]
[1761210455819,0.0002,3882.9,3882.8,4.18488]
[1761210456351,0.0002,3882.9,3882.8,3.72988]
[1761210456758,0.0002,3882.9,3882.8,4.18488]
[1761210456954,0.0002,3882.9,3882.8,3.72988]
[1761210458389,0.0002,3882.9,3882.8,3.3908]
[1761210459247,0.0002,3882.9,3882.8,3.8458]
[1761210460458,0.0002,3882.9,3882.8,3.3908]
[1761210463079,0.0002,3882.9,3882.8,3.8458]
[1761210464578,0.0002,3882.9,3882.8,3.3908]
[1761210466894,0.0002,3882.9,3882.8,3.3908]
[1761210467979,0.0002,3882.9,3882.8,7.25293886]
[1761210468283,0.0002,3882.9,3882.8,7.70793886]
[1761210468887,0.0002,3882.9,3882.8,8.21481886]
[1761210472280,0.0002,3882.9,3882.8,12.08461886]
[1761210475691,0.0004,3883.3,3882.9,0.96188]
[1761210475865,0.0004,3883.3,3883.0,0.93803579]
[1761210476192,0.0004,3883.3,3883.2,0.1288]
[1761210476758,0.0004,3883.3,3883.2,3.21087571]